[Event "Early-Titled-Tuesday-Blitz-February-13-2024"]
[Site "Chess.com"]
[Date "2024.02.13"]
[Round "3"]
[White "mishanick"]
[Black "mr_gustavo"]
[Result "1-0"]
[WhiteElo "2980"]
[BlackElo "2740"]
[TimeControl "180+1"]
[EndTime "8:31:43 PST"]
[Termination "mishanick won on time"]

1. d4 {[%clk 0:03:00.9]} 1... Nf6 {[%clk 0:02:59.9]} 2. c4 {[%clk 0:03:00.8]}
2... g6 {[%clk 0:02:56.6]} 3. Nc3 {[%clk 0:03:00.7]} 3... Bg7 {[%clk 0:02:57.1]}
4. e4 {[%clk 0:03:00.9]} 4... O-O {[%clk 0:02:57.9]} 5. Bd3 {[%clk 0:03:01.3]}
5... d6 {[%clk 0:02:57.8]} 6. Nge2 {[%clk 0:03:01.9]} 6... Nc6 {[%clk
0:02:48.3]} 7. O-O {[%clk 0:02:59.8]} 7... e5 {[%clk 0:02:48.8]} 8. d5 {[%clk
0:03:00.2]} 8... Nd4 {[%clk 0:02:49.2]} 9. Nxd4 {[%clk 0:03:00.9]} 9... exd4
{[%clk 0:02:49.6]} 10. Ne2 {[%clk 0:03:01.6]} 10... Nd7 {[%clk 0:02:49.8]} 11.
Bc2 {[%clk 0:03:01.1]} 11... a5 {[%clk 0:02:49.2]} 12. Nxd4 {[%clk 0:02:59.3]}
12... Re8 {[%clk 0:02:43.2]} 13. b3 {[%clk 0:02:22.4]} 13... Nc5 {[%clk
0:02:24.6]} 14. f3 {[%clk 0:02:17.7]} 14... f5 {[%clk 0:01:46]} 15. exf5 {[%clk
0:02:17.2]} 15... gxf5 {[%clk 0:01:46.6]} 16. Bb2 {[%clk 0:02:15.7]} 16... Qg5
{[%clk 0:01:46.3]} 17. f4 {[%clk 0:02:09.1]} 17... Qg6 {[%clk 0:01:46.7]} 18.
Rf3 {[%clk 0:02:03]} 18... Kh8 {[%clk 0:01:24.3]} 19. Rg3 {[%clk 0:02:01.3]}
19... Qf7 {[%clk 0:01:24.8]} 20. Rxg7 {[%clk 0:01:33.7]} 20... Qxg7 {[%clk
0:01:18.3]} 21. Rb1 {[%clk 0:01:33.1]} 21... Kg8 {[%clk 0:01:04.1]} 22. Nxf5
{[%clk 0:01:28]} 22... Qg6 {[%clk 0:00:52.4]} 23. Ne7+ {[%clk 0:01:02]} 23...
Rxe7 {[%clk 0:00:52.8]} 24. Bxg6 {[%clk 0:01:02.5]} 24... hxg6 {[%clk
0:00:53.3]} 25. Qd4 {[%clk 0:01:02.6]} 25... Rh7 {[%clk 0:00:53.9]} 26. Re1
{[%clk 0:00:58.3]} 26... Bf5 {[%clk 0:00:54]} 27. Re3 {[%clk 0:00:57.7]} 27...
Rf8 {[%clk 0:00:44.1]} 28. h3 {[%clk 0:00:58]} 28... Bd7 {[%clk 0:00:40.6]} 29.
Rg3 {[%clk 0:00:54.6]} 29... Bf5 {[%clk 0:00:37.8]} 30. Re3 {[%clk 0:00:53.6]}
30... Bd7 {[%clk 0:00:35.5]} 31. g4 {[%clk 0:00:53.9]} 31... Rff7 {[%clk
0:00:07.5]} 32. a3 {[%clk 0:00:53.9]} 32... Rf8 {[%clk 0:00:07]} 33. b4 {[%clk
0:00:54]} 33... axb4 {[%clk 0:00:07.9]} 34. axb4 {[%clk 0:00:54.6]} 34... Na4
{[%clk 0:00:08]} 35. Ba1 {[%clk 0:00:55.2]} 35... b5 {[%clk 0:00:05.6]} 36. c5
{[%clk 0:00:54.5]} 36... dxc5 {[%clk 0:00:05.2]} 37. bxc5 {[%clk 0:00:55.4]}
37... Rb8 {[%clk 0:00:02.6]} 38. c6 {[%clk 0:00:53.7]} 38... Be8 {[%clk
0:00:02.5]} 39. d6 {[%clk 0:00:47.6]} 39... cxd6 {[%clk 0:00:02.6]} 40. Qxd6
{[%clk 0:00:46.2]} 40... Ra8 {[%clk 0:00:02]} 41. Re7 {[%clk 0:00:44]} 1-0

[Event "Early-Titled-Tuesday-Blitz-February-13-2024"]
[Site "Chess.com"]
[Date "2024.02.13"]
[Round "3"]
[White "ACollins05"]
[Black "Felix-Rose"]
[Result "1-0"]
[WhiteElo "2458"]
[BlackElo "2225"]
[TimeControl "180+1"]
[EndTime "8:31:45 PST"]
[Termination "ACollins05 won on time"]

1. e4 {[%clk 0:03:00.9]} 1... e5 {[%clk 0:02:58.3]} 2. Nf3 {[%clk 0:03:00.3]}
2... Nc6 {[%clk 0:02:58.3]} 3. Bb5 {[%clk 0:02:59.3]} 3... a6 {[%clk 0:02:58.3]}
4. Ba4 {[%clk 0:02:58.8]} 4... Nf6 {[%clk 0:02:58.5]} 5. O-O {[%clk 0:02:54.4]}
5... b5 {[%clk 0:02:59]} 6. Bb3 {[%clk 0:02:54.1]} 6... Bc5 {[%clk 0:02:59.6]}
7. c3 {[%clk 0:02:37.4]} 7... d6 {[%clk 0:02:59.6]} 8. d4 {[%clk 0:02:35.5]}
8... Bb6 {[%clk 0:03:00.3]} 9. Bg5 {[%clk 0:02:33.7]} 9... h6 {[%clk 0:02:58.3]}
10. Bxf6 {[%clk 0:02:33.3]} 10... Qxf6 {[%clk 0:02:58]} 11. a4 {[%clk 0:02:33]}
11... Rb8 {[%clk 0:02:56.9]} 12. d5 {[%clk 0:02:27.4]} 12... Ne7 {[%clk
0:02:55.8]} 13. Nbd2 {[%clk 0:02:21.6]} 13... Ng6 {[%clk 0:02:53.8]} 14. Re1
{[%clk 0:02:11.5]} 14... O-O {[%clk 0:02:52.5]} 15. Nf1 {[%clk 0:02:11.6]} 15...
Nf4 {[%clk 0:02:48.8]} 16. Ne3 {[%clk 0:02:07.7]} 16... Qg6 {[%clk 0:01:32.5]}
17. Nh4 {[%clk 0:02:00.7]} 17... Qg5 {[%clk 0:01:17.6]} 18. Nf3 {[%clk
0:01:58.9]} 18... Qe7 {[%clk 0:00:54.2]} 19. g3 {[%clk 0:01:54.9]} 19... Nh3+
{[%clk 0:00:52.9]} 20. Kg2 {[%clk 0:01:54.6]} 20... f5 {[%clk 0:00:36]} 21. exf5
{[%clk 0:01:48.2]} 21... Bxe3 {[%clk 0:00:21.2]} 22. Rxe3 {[%clk 0:01:41.2]}
22... Rxf5 {[%clk 0:00:16.1]} 23. Bc2 {[%clk 0:01:33.8]} 23... Rf6 {[%clk
0:00:13.3]} 24. Qd3 {[%clk 0:01:32.4]} 24... Bf5 {[%clk 0:00:10.5]} 25. Qd2
{[%clk 0:01:30.3]} 25... Bg4 {[%clk 0:00:10.4]} 26. Be4 {[%clk 0:01:24.4]} 26...
Rbf8 {[%clk 0:00:10]} 27. Rf1 {[%clk 0:01:18.6]} 27... Qf7 {[%clk 0:00:09.5]}
28. Qd3 {[%clk 0:00:54]} 28... Kh8 {[%clk 0:00:04.7]} 29. Qe2 {[%clk 0:00:27.5]}
29... Ng5 {[%clk 0:00:03.3]} 30. Nxg5 {[%clk 0:00:27.6]} 1-0

[Event "Early-Titled-Tuesday-Blitz-February-13-2024"]
[Site "Chess.com"]
[Date "2024.02.13"]
[Round "3"]
[White "BlueWizzard"]
[Black "DishonorOnYourCow"]
[Result "1-0"]
[WhiteElo "2875"]
[BlackElo "2588"]
[TimeControl "180+1"]
[EndTime "8:31:46 PST"]
[Termination "BlueWizzard won on time"]

1. d4 {[%clk 0:02:29]} 1... Nf6 {[%clk 0:02:58.5]} 2. Nc3 {[%clk 0:02:28.1]}
2... d5 {[%clk 0:02:57.6]} 3. Nf3 {[%clk 0:02:27.2]} 3... g6 {[%clk 0:02:57]} 4.
Bf4 {[%clk 0:02:26.2]} 4... Bg7 {[%clk 0:02:55.2]} 5. g3 {[%clk 0:02:26.6]} 5...
O-O {[%clk 0:02:54.7]} 6. Bg2 {[%clk 0:02:27]} 6... c5 {[%clk 0:02:52.7]} 7. O-O
{[%clk 0:02:26.5]} 7... cxd4 {[%clk 0:02:51.6]} 8. Nxd4 {[%clk 0:02:27.4]} 8...
Nc6 {[%clk 0:02:51.6]} 9. Nxc6 {[%clk 0:02:26.6]} 9... bxc6 {[%clk 0:02:52.5]}
10. Be5 {[%clk 0:02:27.1]} 10... Bf5 {[%clk 0:02:48.4]} 11. Na4 {[%clk
0:02:24.5]} 11... Nd7 {[%clk 0:02:44.5]} 12. Bxg7 {[%clk 0:02:23.8]} 12... Kxg7
{[%clk 0:02:45.1]} 13. c4 {[%clk 0:02:23.5]} 13... Nf6 {[%clk 0:02:33]} 14. Qd4
{[%clk 0:02:20.4]} 14... Qa5 {[%clk 0:02:25.2]} 15. Nc3 {[%clk 0:01:48.2]} 15...
Rad8 {[%clk 0:02:20.8]} 16. cxd5 {[%clk 0:01:44.6]} 16... cxd5 {[%clk 0:02:20]}
17. Rfc1 {[%clk 0:01:37]} 17... Kg8 {[%clk 0:02:17.2]} 18. b4 {[%clk 0:01:36.5]}
18... Qa6 {[%clk 0:02:13.8]} 19. b5 {[%clk 0:01:30.7]} 19... Qd6 {[%clk
0:02:13.5]} 20. Qxa7 {[%clk 0:01:20.6]} 20... d4 {[%clk 0:02:13.4]} 21. Na4
{[%clk 0:01:20.9]} 21... Qa3 {[%clk 0:01:27]} 22. b6 {[%clk 0:01:15.9]} 22...
Qb4 {[%clk 0:00:59.2]} 23. Nc5 {[%clk 0:01:06.4]} 23... Rb8 {[%clk 0:00:45.6]}
24. b7 {[%clk 0:00:53]} 24... Ng4 {[%clk 0:00:16.9]} 25. Na6 {[%clk 0:00:44.4]}
25... Qa3 {[%clk 0:00:16.7]} 26. Qxb8 {[%clk 0:00:39.9]} 26... Rxb8 {[%clk
0:00:14.7]} 27. Nxb8 {[%clk 0:00:40.8]} 27... d3 {[%clk 0:00:11.3]} 28. Nc6
{[%clk 0:00:35.8]} 28... d2 {[%clk 0:00:10.5]} 29. b8=Q+ {[%clk 0:00:35.6]}
29... Kg7 {[%clk 0:00:10.9]} 30. Rd1 {[%clk 0:00:31.8]} 30... Qc5 {[%clk
0:00:10.5]} 31. e3 {[%clk 0:00:28.6]} 31... Nxe3 {[%clk 0:00:04.1]} 32. Qe5+
{[%clk 0:00:18.9]} 32... Qxe5 {[%clk 0:00:03.5]} 33. Nxe5 {[%clk 0:00:19.8]}
33... Nxd1 {[%clk 0:00:01.8]} 34. Rxd1 {[%clk 0:00:20.7]} 1-0

[Event "Early-Titled-Tuesday-Blitz-February-13-2024"]
[Site "Chess.com"]
[Date "2024.02.13"]
[Round "3"]
[White "Andrej2004"]
[Black "margarita_2703"]
[Result "1-0"]
[WhiteElo "2602"]
[BlackElo "2357"]
[TimeControl "180+1"]
[EndTime "8:31:47 PST"]
[Termination "Andrej2004 won by checkmate"]

1. Nf3 {[%clk 0:02:28.2]} 1... d5 {[%clk 0:02:58.4]} 2. b3 {[%clk 0:02:27.7]}
2... Bg4 {[%clk 0:02:45.8]} 3. Bb2 {[%clk 0:02:27.7]} 3... Nd7 {[%clk
0:01:34.1]} 4. c4 {[%clk 0:02:24]} 4... c6 {[%clk 0:01:32.5]} 5. g3 {[%clk
0:02:18.8]} 5... Ngf6 {[%clk 0:01:29.6]} 6. Bg2 {[%clk 0:02:12.8]} 6... e6
{[%clk 0:01:29.3]} 7. O-O {[%clk 0:02:12]} 7... Bd6 {[%clk 0:01:28.1]} 8. d3
{[%clk 0:02:11.7]} 8... Bxf3 {[%clk 0:01:27.9]} 9. exf3 {[%clk 0:02:00.3]} 9...
O-O {[%clk 0:01:26.2]} 10. f4 {[%clk 0:02:00.3]} 10... Qc7 {[%clk 0:01:20.7]}
11. d4 {[%clk 0:01:50.3]} 11... Rfd8 {[%clk 0:01:16.7]} 12. Nc3 {[%clk
0:01:47.9]} 12... Bb4 {[%clk 0:01:15.6]} 13. Qd3 {[%clk 0:01:45.9]} 13... a6
{[%clk 0:01:14.3]} 14. a3 {[%clk 0:01:45.8]} 14... Bxc3 {[%clk 0:01:09.6]} 15.
Bxc3 {[%clk 0:01:46.7]} 15... b5 {[%clk 0:01:10.2]} 16. c5 {[%clk 0:01:44.5]}
16... Nf8 {[%clk 0:01:06.6]} 17. b4 {[%clk 0:01:44.2]} 17... g6 {[%clk
0:00:54.4]} 18. Bf3 {[%clk 0:01:43.5]} 18... h5 {[%clk 0:00:54.5]} 19. h4 {[%clk
0:01:42.8]} 19... Ng4 {[%clk 0:00:53.3]} 20. a4 {[%clk 0:01:37.4]} 20... Nh7
{[%clk 0:00:47.7]} 21. Ra2 {[%clk 0:01:30.6]} 21... Nhf6 {[%clk 0:00:44.3]} 22.
Rfa1 {[%clk 0:01:30.1]} 22... Rab8 {[%clk 0:00:44.6]} 23. Bd2 {[%clk 0:01:24.7]}
23... Qd7 {[%clk 0:00:41.5]} 24. axb5 {[%clk 0:01:13.1]} 24... axb5 {[%clk
0:00:42.4]} 25. Ra6 {[%clk 0:01:12.8]} 25... Rbc8 {[%clk 0:00:40.5]} 26. f5
{[%clk 0:01:10]} 26... exf5 {[%clk 0:00:38.4]} 27. Bf4 {[%clk 0:01:08.5]} 27...
Ne4 {[%clk 0:00:36.3]} 28. Bxg4 {[%clk 0:01:02]} 28... fxg4 {[%clk 0:00:32.8]}
29. Ra7 {[%clk 0:00:57.2]} 29... Qf5 {[%clk 0:00:31.5]} 30. Qe3 {[%clk
0:00:50.4]} 30... Re8 {[%clk 0:00:31]} 31. Qb3 {[%clk 0:00:39.7]} 31... f6
{[%clk 0:00:25.5]} 32. Rb7 {[%clk 0:00:37.8]} 32... Ra8 {[%clk 0:00:22.2]} 33.
Ra3 {[%clk 0:00:37.5]} 33... Rxa3 {[%clk 0:00:19.6]} 34. Qxa3 {[%clk 0:00:38.4]}
34... g5 {[%clk 0:00:19.9]} 35. Qa7 {[%clk 0:00:20.8]} 35... gxf4 {[%clk
0:00:16]} 36. Rg7+ {[%clk 0:00:20.4]} 36... Kf8 {[%clk 0:00:16.4]} 37. Qf7#
{[%clk 0:00:19.9]} 1-0

[Event "Early-Titled-Tuesday-Blitz-February-13-2024"]
[Site "Chess.com"]
[Date "2024.02.13"]
[Round "3"]
[White "Road2GM3000"]
[Black "Agoking701"]
[Result "1/2-1/2"]
[WhiteElo "2472"]
[BlackElo "2642"]
[TimeControl "180+1"]
[EndTime "8:31:48 PST"]
[Termination "Game drawn by repetition"]

1. d4 {[%clk 0:03:00.9]} 1... Nf6 {[%clk 0:02:59.4]} 2. c4 {[%clk 0:03:00.9]}
2... e6 {[%clk 0:02:58.3]} 3. Nc3 {[%clk 0:03:01.4]} 3... d5 {[%clk 0:02:56.9]}
4. cxd5 {[%clk 0:03:00.6]} 4... Nxd5 {[%clk 0:02:56.6]} 5. Nf3 {[%clk
0:03:00.4]} 5... c5 {[%clk 0:02:55.1]} 6. g3 {[%clk 0:02:57]} 6... Nc6 {[%clk
0:02:51.2]} 7. Nxd5 {[%clk 0:02:56.3]} 7... Qxd5 {[%clk 0:02:40.6]} 8. dxc5
{[%clk 0:02:38.4]} 8... Qxd1+ {[%clk 0:02:39.7]} 9. Kxd1 {[%clk 0:02:38.8]} 9...
Bxc5 {[%clk 0:02:40]} 10. e3 {[%clk 0:02:33.4]} 10... e5 {[%clk 0:02:39]} 11.
Bg2 {[%clk 0:02:32.8]} 11... Be6 {[%clk 0:02:36.3]} 12. Bd2 {[%clk 0:02:30.6]}
12... Ke7 {[%clk 0:02:28.2]} 13. Ng5 {[%clk 0:02:24.7]} 13... Bg4+ {[%clk
0:02:23.8]} 14. Ke1 {[%clk 0:02:20.9]} 14... Nb4 {[%clk 0:02:18]} 15. Kf1 {[%clk
0:01:57]} 15... Nd3 {[%clk 0:02:02.8]} 16. h3 {[%clk 0:01:40]} 16... Bh5 {[%clk
0:01:57.3]} 17. Bc3 {[%clk 0:01:30.2]} 17... f6 {[%clk 0:01:54.8]} 18. Ne4
{[%clk 0:01:28.8]} 18... Bb6 {[%clk 0:01:41.7]} 19. g4 {[%clk 0:01:28.9]} 19...
Bf7 {[%clk 0:01:36.5]} 20. Nd2 {[%clk 0:01:11.8]} 20... Rhd8 {[%clk 0:01:25.4]}
21. Bxb7 {[%clk 0:01:10.5]} 21... Rab8 {[%clk 0:01:25.5]} 22. Be4 {[%clk
0:01:10.3]} 22... Nxb2 {[%clk 0:01:04.8]} 23. Bxb2 {[%clk 0:00:58.6]} 23... Rxd2
{[%clk 0:01:03.1]} 24. Ba3+ {[%clk 0:00:59.3]} 24... Ke8 {[%clk 0:01:00.3]} 25.
Kg2 {[%clk 0:00:34.8]} 25... Bxe3 {[%clk 0:00:58.4]} 26. Bc6+ {[%clk 0:00:35.5]}
26... Kd8 {[%clk 0:00:57.1]} 27. Rhd1 {[%clk 0:00:35.7]} 27... Kc7 {[%clk
0:00:49.3]} 28. Rxd2 {[%clk 0:00:27.9]} 28... Bxd2 {[%clk 0:00:50.2]} 29. Be4
{[%clk 0:00:28.1]} 29... g6 {[%clk 0:00:27.5]} 30. Rd1 {[%clk 0:00:28.3]} 30...
Bb4 {[%clk 0:00:26.2]} 31. Rc1+ {[%clk 0:00:24.4]} 31... Kd7 {[%clk 0:00:26.7]}
32. Rd1+ {[%clk 0:00:17.5]} 32... Kc7 {[%clk 0:00:20.6]} 33. Rc1+ {[%clk
0:00:16.7]} 33... Kd7 {[%clk 0:00:17.6]} 34. Rd1+ {[%clk 0:00:17.1]} 34... Kc7
{[%clk 0:00:07.1]} 1/2-1/2

[Event "Early-Titled-Tuesday-Blitz-February-13-2024"]
[Site "Chess.com"]
[Date "2024.02.13"]
[Round "3"]
[White "Amirreza_p"]
[Black "lilleper1"]
[Result "0-1"]
[WhiteElo "2742"]
[BlackElo "2980"]
[TimeControl "180+1"]
[EndTime "8:31:50 PST"]
[Termination "lilleper1 won on time"]

1. e4 {[%clk 0:03:00.9]} 1... c5 {[%clk 0:03:00.2]} 2. c3 {[%clk 0:03:00.9]}
2... Nf6 {[%clk 0:03:00]} 3. e5 {[%clk 0:03:01.1]} 3... Nd5 {[%clk 0:03:00.7]}
4. d4 {[%clk 0:03:01.8]} 4... cxd4 {[%clk 0:03:00.8]} 5. cxd4 {[%clk 0:03:02.7]}
5... d6 {[%clk 0:03:00.8]} 6. Nf3 {[%clk 0:03:02.7]} 6... e6 {[%clk 0:03:00.9]}
7. Bd3 {[%clk 0:03:02.6]} 7... Be7 {[%clk 0:03:01.4]} 8. O-O {[%clk 0:03:02.1]}
8... Bd7 {[%clk 0:03:00.1]} 9. Nc3 {[%clk 0:03:01.9]} 9... Bc6 {[%clk
0:02:57.7]} 10. Ne4 {[%clk 0:03:00.5]} 10... dxe5 {[%clk 0:02:53.5]} 11. Nxe5
{[%clk 0:02:52.2]} 11... O-O {[%clk 0:02:47.2]} 12. a3 {[%clk 0:02:51.6]} 12...
Qb6 {[%clk 0:02:41]} 13. Bc2 {[%clk 0:02:33.9]} 13... Bb5 {[%clk 0:02:22.8]} 14.
Re1 {[%clk 0:02:24.3]} 14... Nd7 {[%clk 0:02:20.8]} 15. Bg5 {[%clk 0:02:04.1]}
15... Nxe5 {[%clk 0:02:03.2]} 16. dxe5 {[%clk 0:01:59.4]} 16... Rfd8 {[%clk
0:01:55.6]} 17. Qh5 {[%clk 0:01:53.5]} 17... g6 {[%clk 0:01:43.6]} 18. Qh4
{[%clk 0:01:49.9]} 18... Qc7 {[%clk 0:01:01.2]} 19. Rac1 {[%clk 0:01:37.4]}
19... Rac8 {[%clk 0:00:59.3]} 20. Nf6+ {[%clk 0:01:26.4]} 20... Bxf6 {[%clk
0:00:50.9]} 21. exf6 {[%clk 0:01:27.3]} 21... Qd6 {[%clk 0:00:46.1]} 22. Be4
{[%clk 0:00:35.7]} 22... Rxc1 {[%clk 0:00:42.2]} 23. Bxc1 {[%clk 0:00:26.2]}
23... Bc6 {[%clk 0:00:40.5]} 24. Bg5 {[%clk 0:00:15.4]} 24... Qe5 {[%clk
0:00:26.8]} 25. f3 {[%clk 0:00:14.9]} 25... h5 {[%clk 0:00:19.2]} 26. Bc1 {[%clk
0:00:10.2]} 26... Qxf6 {[%clk 0:00:15.3]} 27. Bg5 {[%clk 0:00:03.3]} 27... Qd4+
{[%clk 0:00:15.4]} 28. Kh1 {[%clk 0:00:00.3]} 28... Rc8 {[%clk 0:00:14.7]} 0-1

[Event "Early-Titled-Tuesday-Blitz-February-13-2024"]
[Site "Chess.com"]
[Date "2024.02.13"]
[Round "3"]
[White "Nechitaylo_Nikita"]
[Black "zverr1"]
[Result "1-0"]
[WhiteElo "2330"]
[BlackElo "2569"]
[TimeControl "180+1"]
[EndTime "8:31:50 PST"]
[Termination "Nechitaylo_Nikita won on time"]

1. d4 {[%clk 0:03:00.9]} 1... Nf6 {[%clk 0:02:59.9]} 2. c4 {[%clk 0:03:00.8]}
2... g6 {[%clk 0:03:00.2]} 3. f3 {[%clk 0:03:00.3]} 3... Bg7 {[%clk 0:02:55.9]}
4. e4 {[%clk 0:03:00.6]} 4... O-O {[%clk 0:02:55.9]} 5. Nc3 {[%clk 0:03:01.1]}
5... d6 {[%clk 0:02:35.1]} 6. Nge2 {[%clk 0:03:01.1]} 6... b6 {[%clk 0:02:30.5]}
7. Bg5 {[%clk 0:02:57.5]} 7... Bb7 {[%clk 0:02:30.2]} 8. Qd2 {[%clk 0:02:41.3]}
8... Nbd7 {[%clk 0:02:26.1]} 9. g4 {[%clk 0:02:39.1]} 9... c5 {[%clk 0:02:22.4]}
10. h4 {[%clk 0:02:16.7]} 10... cxd4 {[%clk 0:02:20.1]} 11. Nxd4 {[%clk
0:02:17.6]} 11... Rc8 {[%clk 0:02:10.8]} 12. h5 {[%clk 0:02:11.9]} 12... Ne5
{[%clk 0:01:45.9]} 13. hxg6 {[%clk 0:02:10.4]} 13... fxg6 {[%clk 0:01:36.8]} 14.
Be2 {[%clk 0:01:32.5]} 14... Qd7 {[%clk 0:01:32]} 15. Bh6 {[%clk 0:01:26.3]}
15... Rf7 {[%clk 0:01:17.9]} 16. b3 {[%clk 0:00:52.4]} 16... e6 {[%clk 0:00:52]}
17. Bxg7 {[%clk 0:00:29.4]} 17... Rxg7 {[%clk 0:00:50]} 18. Ndb5 {[%clk
0:00:29.7]} 18... d5 {[%clk 0:00:34.9]} 19. Qf4 {[%clk 0:00:28.9]} 19... a6
{[%clk 0:00:08.8]} 20. Qxe5 {[%clk 0:00:07.9]} 20... axb5 {[%clk 0:00:03.7]} 21.
Qxf6 {[%clk 0:00:08.6]} 21... b4 {[%clk 0:00:03.1]} 22. Nb5 {[%clk 0:00:06.8]}
22... Rf8 {[%clk 0:00:03.1]} 23. Qd4 {[%clk 0:00:05.4]} 23... e5 {[%clk
0:00:01.8]} 24. Qxe5 {[%clk 0:00:03.9]} 24... Re7 {[%clk 0:00:02.5]} 25. Qd4
{[%clk 0:00:03.6]} 25... Qe8 {[%clk 0:00:01.2]} 26. cxd5 {[%clk 0:00:03.5]} 1-0

[Event "Early-Titled-Tuesday-Blitz-February-13-2024"]
[Site "Chess.com"]
[Date "2024.02.13"]
[Round "3"]
[White "johnmez"]
[Black "onnoelgersma"]
[Result "1-0"]
[WhiteElo "2295"]
[BlackElo "2532"]
[TimeControl "180+1"]
[EndTime "8:31:50 PST"]
[Termination "johnmez won by resignation"]

1. d4 {[%clk 0:03:00.9]} 1... Nf6 {[%clk 0:02:45.7]} 2. c4 {[%clk 0:03:00.8]}
2... c5 {[%clk 0:02:34.3]} 3. d5 {[%clk 0:03:00.5]} 3... e6 {[%clk 0:02:34.5]}
4. Nc3 {[%clk 0:03:00.8]} 4... d6 {[%clk 0:02:34.4]} 5. e4 {[%clk 0:03:00.1]}
5... g6 {[%clk 0:02:34.7]} 6. Nge2 {[%clk 0:02:58.6]} 6... Bg7 {[%clk 0:02:29]}
7. Ng3 {[%clk 0:02:58.1]} 7... exd5 {[%clk 0:02:25]} 8. cxd5 {[%clk 0:02:57.3]}
8... h5 {[%clk 0:02:24.6]} 9. Be2 {[%clk 0:02:54.1]} 9... h4 {[%clk 0:02:20.8]}
10. Nf1 {[%clk 0:02:54.2]} 10... Na6 {[%clk 0:02:19.1]} 11. Bg5 {[%clk
0:02:51.4]} 11... h3 {[%clk 0:02:03.7]} 12. g3 {[%clk 0:02:50.1]} 12... O-O
{[%clk 0:02:04]} 13. Nd2 {[%clk 0:02:43.9]} 13... Re8 {[%clk 0:02:02.9]} 14. O-O
{[%clk 0:02:43.3]} 14... Nc7 {[%clk 0:02:02.5]} 15. a4 {[%clk 0:02:41.7]} 15...
Na6 {[%clk 0:01:52.8]} 16. Nc4 {[%clk 0:02:23.5]} 16... Nb4 {[%clk 0:01:37.7]}
17. f4 {[%clk 0:02:22.2]} 17... Qd7 {[%clk 0:01:13.4]} 18. Bf3 {[%clk
0:01:27.7]} 18... Nh7 {[%clk 0:00:22.5]} 19. Bh4 {[%clk 0:01:25.7]} 19... a6
{[%clk 0:00:20.6]} 20. Nb6 {[%clk 0:01:06.5]} 20... Bd4+ {[%clk 0:00:20.9]} 21.
Kh1 {[%clk 0:01:02.2]} 21... Qc7 {[%clk 0:00:21.4]} 22. Nxa8 {[%clk 0:01:01.6]}
22... Qb8 {[%clk 0:00:20.3]} 23. Nb6 {[%clk 0:01:00.9]} 23... f5 {[%clk
0:00:20]} 24. Nxc8 {[%clk 0:00:55.7]} 24... Qxc8 {[%clk 0:00:20.2]} 25. Re1
{[%clk 0:00:49.7]} 25... Nf6 {[%clk 0:00:15.2]} 26. Bxf6 {[%clk 0:00:43.7]}
26... Bxf6 {[%clk 0:00:15]} 27. Qd2 {[%clk 0:00:36.3]} 27... Bd4 {[%clk
0:00:11.7]} 28. exf5 {[%clk 0:00:32.9]} 28... Rxe1+ {[%clk 0:00:10.8]} 29. Rxe1
{[%clk 0:00:33.8]} 29... Qxf5 {[%clk 0:00:11.3]} 30. Be4 {[%clk 0:00:24.7]}
30... Qg4 {[%clk 0:00:10]} 31. Qe2 {[%clk 0:00:25]} 31... Qd7 {[%clk 0:00:05.9]}
32. Bxg6 {[%clk 0:00:24.3]} 32... Kg7 {[%clk 0:00:06.5]} 33. Bb1 {[%clk
0:00:20.7]} 33... Qf7 {[%clk 0:00:03.7]} 34. Qe7 {[%clk 0:00:20.1]} 1-0

[Event "Early-Titled-Tuesday-Blitz-February-13-2024"]
[Site "Chess.com"]
[Date "2024.02.13"]
[Round "3"]
[White "cukin84"]
[Black "secrethawk1"]
[Result "0-1"]
[WhiteElo "2225"]
[BlackElo "2491"]
[TimeControl "180+1"]
[EndTime "8:31:50 PST"]
[Termination "secrethawk1 won by resignation"]

1. e4 {[%clk 0:03:00.9]} 1... c6 {[%clk 0:02:59.6]} 2. d4 {[%clk 0:03:00.4]}
2... d5 {[%clk 0:03:00.5]} 3. exd5 {[%clk 0:02:59.8]} 3... cxd5 {[%clk
0:03:01.4]} 4. Bd3 {[%clk 0:02:59.8]} 4... Nc6 {[%clk 0:03:01.4]} 5. c3 {[%clk
0:02:59.4]} 5... Nf6 {[%clk 0:02:55.9]} 6. h3 {[%clk 0:02:58.7]} 6... g6 {[%clk
0:02:51.8]} 7. Nf3 {[%clk 0:02:58.7]} 7... Bg7 {[%clk 0:02:50.5]} 8. Bf4 {[%clk
0:02:57.4]} 8... O-O {[%clk 0:02:48.8]} 9. O-O {[%clk 0:02:56.4]} 9... Bf5
{[%clk 0:02:48.2]} 10. Bxf5 {[%clk 0:02:55.9]} 10... gxf5 {[%clk 0:02:49.1]} 11.
Ne5 {[%clk 0:02:54.5]} 11... e6 {[%clk 0:02:48.6]} 12. Nd2 {[%clk 0:02:52.8]}
12... Rc8 {[%clk 0:02:43.8]} 13. Bh2 {[%clk 0:02:50.6]} 13... Ne4 {[%clk
0:02:42.6]} 14. Nxe4 {[%clk 0:02:46.2]} 14... fxe4 {[%clk 0:02:43.5]} 15. f3
{[%clk 0:02:33.8]} 15... Nxe5 {[%clk 0:02:41.9]} 16. Bxe5 {[%clk 0:02:31.5]}
16... Bxe5 {[%clk 0:02:38.5]} 17. dxe5 {[%clk 0:02:31.6]} 17... exf3 {[%clk
0:02:23.9]} 18. Qxf3 {[%clk 0:02:29.9]} 18... Qg5 {[%clk 0:02:11.5]} 19. Rae1
{[%clk 0:02:24.1]} 19... Kh8 {[%clk 0:02:06.6]} 20. Kh1 {[%clk 0:02:23.7]} 20...
Rg8 {[%clk 0:02:04.3]} 21. Re2 {[%clk 0:02:23.3]} 21... Rg7 {[%clk 0:02:02.8]}
22. Qf6 {[%clk 0:02:16.1]} 22... Qxf6 {[%clk 0:01:58.6]} 23. Rxf6 {[%clk
0:02:14.6]} 23... Kg8 {[%clk 0:01:58.6]} 24. Kh2 {[%clk 0:02:13.8]} 24... Rc4
{[%clk 0:01:56.1]} 25. g4 {[%clk 0:02:08.1]} 25... b5 {[%clk 0:01:51]} 26. a3
{[%clk 0:02:07.5]} 26... a5 {[%clk 0:01:47.9]} 27. Rf3 {[%clk 0:01:49.7]} 27...
h6 {[%clk 0:01:21.3]} 28. Rf6 {[%clk 0:01:47.1]} 28... Kh7 {[%clk 0:01:12.7]}
29. Ref2 {[%clk 0:01:43.6]} 29... Rc7 {[%clk 0:01:10.4]} 30. Kg3 {[%clk
0:01:42]} 30... h5 {[%clk 0:01:03.4]} 31. Kh4 {[%clk 0:01:35.1]} 31... hxg4
{[%clk 0:01:01.3]} 32. hxg4 {[%clk 0:01:35.3]} 32... Rb7 {[%clk 0:00:56.2]} 33.
Kh5 {[%clk 0:01:23.5]} 33... Kg8 {[%clk 0:00:47.1]} 34. g5 {[%clk 0:01:16.9]}
34... b4 {[%clk 0:00:41.2]} 35. cxb4 {[%clk 0:01:03.6]} 35... axb4 {[%clk
0:00:42.1]} 36. g6 {[%clk 0:00:58]} 36... bxa3 {[%clk 0:00:17.4]} 37. gxf7+
{[%clk 0:00:54]} 37... Rbxf7 {[%clk 0:00:17.3]} 38. Rxf7 {[%clk 0:00:49.4]}
38... Rxf7 {[%clk 0:00:18.2]} 39. Rxf7 {[%clk 0:00:48.9]} 39... Kxf7 {[%clk
0:00:19.1]} 40. bxa3 {[%clk 0:00:49]} 40... Ke7 {[%clk 0:00:18.9]} 41. Kg4
{[%clk 0:00:34.9]} 41... Kd7 {[%clk 0:00:17]} 42. Kf4 {[%clk 0:00:34.5]} 42...
Kc6 {[%clk 0:00:17.1]} 43. Ke3 {[%clk 0:00:34.8]} 43... Kb5 {[%clk 0:00:17.1]}
44. Kd4 {[%clk 0:00:35]} 44... Ka4 {[%clk 0:00:15.6]} 0-1